[Event "Early-Titled-Tuesday-Blitz-September-05-2023"]
[Site "Chess.com"]
[Date "2023.09.05"]
[Round "8"]
[White "Sjakkerntobi"]
[Black "SilverCityIndigo"]
[Result "1-0"]
[WhiteElo "2487"]
[BlackElo "2319"]
[TimeControl "180+1"]
[EndTime "9:25:29 PDT"]
[Termination "Sjakkerntobi won by resignation"]

1. f4 {[%clk 0:03:00.9]} 1... d5 {[%clk 0:02:59]} 2. Nf3 {[%clk 0:03:01]} 2...
h5 {[%clk 0:02:59.3]} 3. d3 {[%clk 0:02:58.3]} 3... Nh6 {[%clk 0:02:59.7]} 4. e4
{[%clk 0:02:58.5]} 4... dxe4 {[%clk 0:02:57.3]} 5. dxe4 {[%clk 0:02:59.4]} 5...
Qxd1+ {[%clk 0:02:57.4]} 6. Kxd1 {[%clk 0:02:59.9]} 6... Bg4 {[%clk 0:02:57]} 7.
Be2 {[%clk 0:02:58.8]} 7... Nc6 {[%clk 0:02:53.9]} 8. c3 {[%clk 0:02:58.6]} 8...
O-O-O+ {[%clk 0:02:53.9]} 9. Kc2 {[%clk 0:02:58.9]} 9... e5 {[%clk 0:02:49.2]}
10. h3 {[%clk 0:02:52.8]} 10... Bxf3 {[%clk 0:02:46.1]} 11. Bxf3 {[%clk
0:02:53.7]} 11... h4 {[%clk 0:02:46.4]} 12. f5 {[%clk 0:02:41.5]} 12... f6
{[%clk 0:02:40.2]} 13. Be3 {[%clk 0:02:39.2]} 13... Nf7 {[%clk 0:02:39.4]} 14.
Nd2 {[%clk 0:02:37.4]} 14... b6 {[%clk 0:02:28.5]} 15. a4 {[%clk 0:02:35.9]}
15... a5 {[%clk 0:02:26.6]} 16. Nc4 {[%clk 0:02:31.4]} 16... Nd6 {[%clk
0:02:25.1]} 17. Nxd6+ {[%clk 0:02:31.8]} 17... Bxd6 {[%clk 0:02:22.2]} 18. Be2
{[%clk 0:02:31.8]} 18... Bc5 {[%clk 0:02:19.3]} 19. Bxc5 {[%clk 0:02:31.2]}
19... bxc5 {[%clk 0:02:20.2]} 20. Ba6+ {[%clk 0:02:26.7]} 20... Kb8 {[%clk
0:02:20.1]} 21. Bc4 {[%clk 0:02:27.6]} 21... Rh5 {[%clk 0:02:16.2]} 22. Bd5
{[%clk 0:02:25.3]} 22... Ne7 {[%clk 0:02:10.3]} 23. Bc4 {[%clk 0:02:24.6]} 23...
Rg5 {[%clk 0:02:09.9]} 24. Rhg1 {[%clk 0:02:25.2]} 24... g6 {[%clk 0:01:47.4]}
25. fxg6 {[%clk 0:02:19.5]} 25... Nxg6 {[%clk 0:01:48.3]} 26. Ra3 {[%clk
0:02:17.5]} 26... Nf4 {[%clk 0:01:46.9]} 27. Rb3+ {[%clk 0:02:17.5]} 27... Ka7
{[%clk 0:01:36.5]} 28. Rb5 {[%clk 0:02:17]} 28... Nxg2 {[%clk 0:01:33.5]} 29.
Rxa5+ {[%clk 0:02:11.9]} 29... Kb6 {[%clk 0:01:33.7]} 30. Rb5+ {[%clk
0:02:11.8]} 30... Kc6 {[%clk 0:01:34.1]} 31. Kb3 {[%clk 0:02:08.5]} 31... Nf4
{[%clk 0:01:26.8]} 32. Ra1 {[%clk 0:02:01.4]} 32... Rg2 {[%clk 0:01:18.6]} 33.
a5 {[%clk 0:01:57.5]} 33... Rdd2 {[%clk 0:01:16.9]} 34. Ra2 {[%clk 0:01:57.5]}
34... Ne2 {[%clk 0:00:52.8]} 35. Bxe2 {[%clk 0:01:47.7]} 35... Rgxe2 {[%clk
0:00:52.9]} 36. Rb8 {[%clk 0:01:44.8]} 36... Rxe4 {[%clk 0:00:44.3]} 37. a6
{[%clk 0:01:45.1]} 37... c4+ {[%clk 0:00:42.8]} 38. Kb4 {[%clk 0:01:40.7]} 38...
Ree2 {[%clk 0:00:27.5]} 39. Ka3 {[%clk 0:01:37]} 39... Rd5 {[%clk 0:00:22.2]}
40. Kb4 {[%clk 0:01:31.3]} 40... Rdd2 {[%clk 0:00:16.9]} 41. a7 {[%clk
0:01:29.4]} 41... Rxb2+ {[%clk 0:00:17.4]} 42. Rxb2 {[%clk 0:01:30.3]} 42...
Rxb2+ {[%clk 0:00:17.7]} 43. Kxc4 {[%clk 0:01:31.2]} 43... Ra2 {[%clk
0:00:18.3]} 44. a8=Q+ {[%clk 0:01:29.5]} 44... Rxa8 {[%clk 0:00:19]} 45. Rxa8
{[%clk 0:01:30.4]} 45... f5 {[%clk 0:00:19.1]} 46. Rf8 {[%clk 0:01:30.6]} 46...
f4 {[%clk 0:00:19.5]} 47. Rf5 {[%clk 0:01:29.6]} 47... Kd6 {[%clk 0:00:20.1]}
48. Kd3 {[%clk 0:01:28.2]} 48... Ke6 {[%clk 0:00:20.1]} 49. Ke4 {[%clk
0:01:28.8]} 49... c5 {[%clk 0:00:20.3]} 50. Rxe5+ {[%clk 0:01:29.6]} 1-0

[Event "Early-Titled-Tuesday-Blitz-September-05-2023"]
[Site "Chess.com"]
[Date "2023.09.05"]
[Round "8"]
[White "NovoselovRoman"]
[Black "Chessdude1987"]
[Result "1-0"]
[WhiteElo "2570"]
[BlackElo "2427"]
[TimeControl "180+1"]
[EndTime "9:25:31 PDT"]
[Termination "NovoselovRoman won on time"]

1. e4 {[%clk 0:02:53.7]} 1... e6 {[%clk 0:03:00.2]} 2. d4 {[%clk 0:02:53.4]}
2... d5 {[%clk 0:03:00.8]} 3. Nc3 {[%clk 0:02:53.5]} 3... Nf6 {[%clk 0:02:59.1]}
4. exd5 {[%clk 0:02:53.6]} 4... exd5 {[%clk 0:02:58.9]} 5. Bd3 {[%clk
0:02:54.2]} 5... c5 {[%clk 0:02:55.6]} 6. dxc5 {[%clk 0:02:53.4]} 6... Bxc5
{[%clk 0:02:55.4]} 7. Nf3 {[%clk 0:02:40.5]} 7... h6 {[%clk 0:02:53.9]} 8. O-O
{[%clk 0:02:39.3]} 8... O-O {[%clk 0:02:52.4]} 9. Bf4 {[%clk 0:02:33.9]} 9...
Bg4 {[%clk 0:02:51.6]} 10. h3 {[%clk 0:02:33.7]} 10... Bh5 {[%clk 0:02:46.5]}
11. g4 {[%clk 0:02:31.3]} 11... Bg6 {[%clk 0:02:30.6]} 12. Bxg6 {[%clk
0:02:25.9]} 12... fxg6 {[%clk 0:02:31.5]} 13. Ne5 {[%clk 0:02:17]} 13... g5
{[%clk 0:02:17.4]} 14. Bg3 {[%clk 0:02:12.1]} 14... Nc6 {[%clk 0:02:16.3]} 15.
Qd3 {[%clk 0:01:59.2]} 15... Re8 {[%clk 0:01:46.4]} 16. Rfe1 {[%clk 0:01:47.8]}
16... Nxe5 {[%clk 0:01:26.8]} 17. Bxe5 {[%clk 0:01:37.8]} 17... Ne4 {[%clk
0:01:14.1]} 18. Nxe4 {[%clk 0:01:25.5]} 18... dxe4 {[%clk 0:01:08]} 19. Qxe4
{[%clk 0:01:24.8]} 19... Qb6 {[%clk 0:00:58]} 20. Re2 {[%clk 0:01:22.1]} 20...
Rad8 {[%clk 0:00:46.5]} 21. Qc4+ {[%clk 0:01:09.6]} 21... Re6 {[%clk 0:00:22.7]}
22. Bc3 {[%clk 0:00:57.2]} 22... Re8 {[%clk 0:00:10]} 23. Rae1 {[%clk
0:00:57.3]} 23... Kf7 {[%clk 0:00:03.4]} 24. Rxe6 {[%clk 0:00:57]} 24... Bxf2+
{[%clk 0:00:02.9]} 25. Kg2 {[%clk 0:00:57.1]} 25... Rxe6 {[%clk 0:00:02.7]} 26.
Rxe6 {[%clk 0:00:56.5]} 26... Qxe6 {[%clk 0:00:02.4]} 27. Qxe6+ {[%clk
0:00:57.2]} 27... Kxe6 {[%clk 0:00:02.8]} 28. Kxf2 {[%clk 0:00:58.1]} 1-0

[Event "Early-Titled-Tuesday-Blitz-September-05-2023"]
[Site "Chess.com"]
[Date "2023.09.05"]
[Round "8"]
[White "kasun_bole"]
[Black "DeArron_Fox"]
[Result "1-0"]
[WhiteElo "2411"]
[BlackElo "2502"]
[TimeControl "180+1"]
[EndTime "9:25:32 PDT"]
[Termination "kasun_bole won on time"]

1. d4 {[%clk 0:03:00.9]} 1... d5 {[%clk 0:02:55.6]} 2. c4 {[%clk 0:03:01.2]}
2... e6 {[%clk 0:02:55.6]} 3. Nc3 {[%clk 0:03:01.9]} 3... Nf6 {[%clk 0:02:51.1]}
4. Bg5 {[%clk 0:03:00.5]} 4... Be7 {[%clk 0:02:51.7]} 5. cxd5 {[%clk 0:03:00.8]}
5... exd5 {[%clk 0:02:46.9]} 6. e3 {[%clk 0:03:01]} 6... c6 {[%clk 0:02:47.1]}
7. Bd3 {[%clk 0:03:01.2]} 7... Nbd7 {[%clk 0:02:47.7]} 8. Nge2 {[%clk
0:03:01.3]} 8... Nh5 {[%clk 0:02:47.7]} 9. Bxe7 {[%clk 0:02:57.6]} 9... Qxe7
{[%clk 0:02:48.6]} 10. Qc2 {[%clk 0:02:56.9]} 10... Nb6 {[%clk 0:02:23.9]} 11.
Ng3 {[%clk 0:02:54.6]} 11... Nxg3 {[%clk 0:02:17.6]} 12. hxg3 {[%clk 0:02:55.5]}
12... g6 {[%clk 0:02:17.7]} 13. O-O-O {[%clk 0:02:39.8]} 13... Be6 {[%clk
0:02:14.5]} 14. Kb1 {[%clk 0:02:36.4]} 14... O-O-O {[%clk 0:02:14]} 15. Na4
{[%clk 0:02:31.6]} 15... Nxa4 {[%clk 0:02:10.1]} 16. Qxa4 {[%clk 0:02:32.5]}
16... Kb8 {[%clk 0:02:10.8]} 17. Rc1 {[%clk 0:02:32.2]} 17... h5 {[%clk
0:02:08.6]} 18. Rc3 {[%clk 0:02:19.5]} 18... h4 {[%clk 0:01:44.2]} 19. gxh4
{[%clk 0:02:08.8]} 19... Rxh4 {[%clk 0:01:37.3]} 20. Rhc1 {[%clk 0:02:09.4]}
20... Bc8 {[%clk 0:01:26.4]} 21. Ra3 {[%clk 0:02:08.1]} 21... a6 {[%clk
0:01:26.1]} 22. Rb3 {[%clk 0:02:01.7]} 22... Ka8 {[%clk 0:01:02.9]} 23. Qa5
{[%clk 0:01:53.4]} 23... Rd6 {[%clk 0:00:36.2]} 24. Qb6 {[%clk 0:01:42]} 24...
Bf5 {[%clk 0:00:30.2]} 25. Bxf5 {[%clk 0:01:38.1]} 25... gxf5 {[%clk 0:00:31.1]}
26. a3 {[%clk 0:01:32.6]} 26... Rh2 {[%clk 0:00:27.9]} 27. Rc5 {[%clk 0:01:16]}
27... Rh8 {[%clk 0:00:03.4]} 28. Ra5 {[%clk 0:01:15.8]} 28... Qd7 {[%clk
0:00:02.7]} 29. Ka2 {[%clk 0:01:08.5]} 29... Rb8 {[%clk 0:00:02]} 30. Rxa6+
{[%clk 0:01:05.2]} 1-0

[Event "Early-Titled-Tuesday-Blitz-September-05-2023"]
[Site "Chess.com"]
[Date "2023.09.05"]
[Round "8"]
[White "FGHSMN"]
[Black "hurricane7791"]
[Result "0-1"]
[WhiteElo "2906"]
[BlackElo "2714"]
[TimeControl "180+1"]
[EndTime "9:25:37 PDT"]
[Termination "hurricane7791 won by checkmate"]

1. e4 {[%clk 0:02:59.2]} 1... c5 {[%clk 0:02:58.5]} 2. Nf3 {[%clk 0:02:59.3]}
2... d6 {[%clk 0:02:59]} 3. d4 {[%clk 0:02:59.4]} 3... cxd4 {[%clk 0:02:59.9]}
4. Nxd4 {[%clk 0:03:00.3]} 4... Nf6 {[%clk 0:03:00.6]} 5. Nc3 {[%clk 0:03:00.9]}
5... a6 {[%clk 0:03:01.2]} 6. h3 {[%clk 0:03:00.7]} 6... e5 {[%clk 0:03:01.3]}
7. Nf3 {[%clk 0:03:01.1]} 7... Nbd7 {[%clk 0:02:53.5]} 8. g4 {[%clk 0:03:00.3]}
8... h6 {[%clk 0:02:49.4]} 9. Be3 {[%clk 0:02:56.8]} 9... b5 {[%clk 0:02:49.6]}
10. a3 {[%clk 0:02:43.9]} 10... Bb7 {[%clk 0:02:49.2]} 11. Nd2 {[%clk 0:02:43]}
11... Rc8 {[%clk 0:02:48.7]} 12. Bg2 {[%clk 0:02:38.5]} 12... Nc5 {[%clk
0:02:48.6]} 13. Qe2 {[%clk 0:02:33.7]} 13... Ne6 {[%clk 0:02:48.5]} 14. O-O
{[%clk 0:02:21.4]} 14... Be7 {[%clk 0:02:47.5]} 15. Rac1 {[%clk 0:02:20]} 15...
O-O {[%clk 0:02:42.7]} 16. Nd5 {[%clk 0:02:20.6]} 16... Nxd5 {[%clk 0:02:42.8]}
17. exd5 {[%clk 0:02:21.5]} 17... Nf4 {[%clk 0:02:29.3]} 18. Bxf4 {[%clk
0:02:21.7]} 18... exf4 {[%clk 0:02:30.1]} 19. c4 {[%clk 0:02:21.5]} 19... bxc4
{[%clk 0:02:22.8]} 20. Rxc4 {[%clk 0:02:20.1]} 20... Bf6 {[%clk 0:02:19.6]} 21.
Rxc8 {[%clk 0:02:16.8]} 21... Qxc8 {[%clk 0:02:17.7]} 22. Nc4 {[%clk 0:02:09.5]}
22... Qc7 {[%clk 0:02:04.6]} 23. b4 {[%clk 0:02:07.1]} 23... Bc8 {[%clk
0:02:02.3]} 24. Qd3 {[%clk 0:02:02.3]} 24... Bd7 {[%clk 0:02:00.1]} 25. Rc1
{[%clk 0:01:50.4]} 25... Bb5 {[%clk 0:01:55.3]} 26. Bf1 {[%clk 0:01:51]} 26...
Rc8 {[%clk 0:01:54.9]} 27. Qb3 {[%clk 0:01:50.2]} 27... Qd7 {[%clk 0:01:43.8]}
28. Nb6 {[%clk 0:01:44.6]} 28... Rxc1 {[%clk 0:01:43]} 29. Nxd7 {[%clk
0:01:45.1]} 29... Bd4 {[%clk 0:01:22.8]} 30. Kg2 {[%clk 0:01:45.4]} 30... Bxf1+
{[%clk 0:01:19.2]} 31. Kh2 {[%clk 0:01:42.9]} 31... Rc3 {[%clk 0:01:17.5]} 32.
Qd1 {[%clk 0:01:37.7]} 32... Rxh3+ {[%clk 0:01:12.1]} 33. Kg1 {[%clk 0:01:37.5]}
33... Bd3 {[%clk 0:01:06.5]} 34. Qe1 {[%clk 0:01:35.9]} 34... Kh7 {[%clk
0:00:29.5]} 35. Nf8+ {[%clk 0:01:31.9]} 35... Kg8 {[%clk 0:00:29.7]} 36. Qe8
{[%clk 0:01:32.6]} 36... Rg3+ {[%clk 0:00:23]} 37. Kh2 {[%clk 0:01:32]} 37...
Bxf2 {[%clk 0:00:20.6]} 38. Nd7+ {[%clk 0:01:11.6]} 38... Kh7 {[%clk 0:00:20.4]}
39. Qxf7 {[%clk 0:01:12.2]} 39... Bg1+ {[%clk 0:00:18.7]} 40. Kh1 {[%clk
0:01:10.8]} 40... Be4# {[%clk 0:00:19.2]} 0-1

[Event "Early-Titled-Tuesday-Blitz-September-05-2023"]
[Site "Chess.com"]
[Date "2023.09.05"]
[Round "8"]
[White "vladislavkovalev"]
[Black "FairChess_on_YouTube"]
[Result "0-1"]
[WhiteElo "2913"]
[BlackElo "3056"]
[TimeControl "180+1"]
[EndTime "9:25:38 PDT"]
[Termination "FairChess_on_YouTube won by resignation"]

1. e4 {[%clk 0:02:56.7]} 1... e5 {[%clk 0:02:58.5]} 2. Nf3 {[%clk 0:02:57.2]}
2... Nc6 {[%clk 0:02:58]} 3. Bb5 {[%clk 0:02:57.6]} 3... a6 {[%clk 0:02:55.7]}
4. Ba4 {[%clk 0:02:58]} 4... d6 {[%clk 0:02:55.5]} 5. Kf1 {[%clk 0:02:57.6]}
5... f5 {[%clk 0:02:46.8]} 6. d3 {[%clk 0:02:55.9]} 6... Nf6 {[%clk 0:02:44]} 7.
Nc3 {[%clk 0:02:55]} 7... Be7 {[%clk 0:02:40.4]} 8. a3 {[%clk 0:02:35.1]} 8...
O-O {[%clk 0:02:24.6]} 9. Bb3+ {[%clk 0:02:35.4]} 9... Kh8 {[%clk 0:02:24.9]}
10. Ng5 {[%clk 0:02:33.9]} 10... Qe8 {[%clk 0:02:25.3]} 11. h4 {[%clk
0:02:29.6]} 11... Nd4 {[%clk 0:02:24.1]} 12. Ba2 {[%clk 0:02:29.9]} 12... f4
{[%clk 0:02:16.1]} 13. Ne2 {[%clk 0:02:25.9]} 13... Nxe2 {[%clk 0:02:09.8]} 14.
Qxe2 {[%clk 0:02:26.8]} 14... Bg4 {[%clk 0:02:10.1]} 15. f3 {[%clk 0:02:13.5]}
15... Nh5 {[%clk 0:02:08.1]} 16. fxg4 {[%clk 0:01:30.7]} 16... Ng3+ {[%clk
0:02:07.7]} 17. Ke1 {[%clk 0:01:31.3]} 17... Qg6 {[%clk 0:01:38.1]} 18. Qf3
{[%clk 0:01:04.1]} 18... Nxh1 {[%clk 0:01:37.2]} 19. Bd2 {[%clk 0:00:38.6]}
19... Bxg5 {[%clk 0:01:33.2]} 20. hxg5 {[%clk 0:00:39.5]} 20... Qxg5 {[%clk
0:01:33]} 21. Ke2 {[%clk 0:00:38.2]} 21... Qh4 {[%clk 0:01:31.6]} 22. Rg1 {[%clk
0:00:32.6]} 22... Rf6 {[%clk 0:01:15.4]} 23. Be1 {[%clk 0:00:11.7]} 23... Qh2
{[%clk 0:01:13.7]} 24. g5 {[%clk 0:00:11.3]} 24... Rg6 {[%clk 0:01:07.1]} 25.
Rf1 {[%clk 0:00:11.6]} 25... Rxg5 {[%clk 0:01:03.8]} 26. Kd1 {[%clk 0:00:12.2]}
26... Rxg2 {[%clk 0:00:58.3]} 27. Bb3 {[%clk 0:00:11.9]} 27... Ng3 {[%clk
0:00:56.1]} 28. Rf2 {[%clk 0:00:06.5]} 28... Rxf2 {[%clk 0:00:54.9]} 29. Bxf2
{[%clk 0:00:07.4]} 29... Qh5 {[%clk 0:00:54]} 0-1

[Event "Early-Titled-Tuesday-Blitz-September-05-2023"]
[Site "Chess.com"]
[Date "2023.09.05"]
[Round "8"]
[White "KatakuriDono"]
[Black "MathiasWomacka"]
[Result "0-1"]
[WhiteElo "2329"]
[BlackElo "2495"]
[TimeControl "180+1"]
[EndTime "9:25:42 PDT"]
[Termination "MathiasWomacka won by resignation"]

1. d4 {[%clk 0:03:00.9]} 1... Nf6 {[%clk 0:02:59]} 2. c4 {[%clk 0:03:01.4]} 2...
e6 {[%clk 0:02:59.4]} 3. Nf3 {[%clk 0:03:01]} 3... Bb4+ {[%clk 0:02:59.2]} 4.
Bd2 {[%clk 0:03:00.8]} 4... Qe7 {[%clk 0:02:57.9]} 5. a3 {[%clk 0:02:58.4]} 5...
Bxd2+ {[%clk 0:02:56.7]} 6. Nbxd2 {[%clk 0:02:59]} 6... d6 {[%clk 0:02:55.5]} 7.
g3 {[%clk 0:02:58.4]} 7... e5 {[%clk 0:02:55.6]} 8. dxe5 {[%clk 0:02:54.8]} 8...
dxe5 {[%clk 0:02:54.8]} 9. e4 {[%clk 0:02:45.9]} 9... O-O {[%clk 0:02:53.9]} 10.
Bd3 {[%clk 0:02:42.5]} 10... Bh3 {[%clk 0:02:41]} 11. Qe2 {[%clk 0:02:32.5]}
11... Nc6 {[%clk 0:02:40]} 12. b4 {[%clk 0:02:26.7]} 12... Rfd8 {[%clk
0:02:33.4]} 13. Nb3 {[%clk 0:02:22.4]} 13... Bg2 {[%clk 0:02:14.5]} 14. Rg1
{[%clk 0:02:16.9]} 14... Bxf3 {[%clk 0:02:14.7]} 15. Qxf3 {[%clk 0:02:16.3]}
15... a5 {[%clk 0:02:14.6]} 16. b5 {[%clk 0:02:10.9]} 16... Nd4 {[%clk
0:02:14.2]} 17. Nxd4 {[%clk 0:02:11]} 17... Rxd4 {[%clk 0:02:14.7]} 18. g4
{[%clk 0:01:56.2]} 18... Rad8 {[%clk 0:02:12.5]} 19. Be2 {[%clk 0:01:45.2]}
19... Nxe4 {[%clk 0:02:06.7]} 20. Qe3 {[%clk 0:01:18.3]} 20... Nc5 {[%clk
0:01:50.6]} 21. g5 {[%clk 0:01:03.4]} 21... e4 {[%clk 0:01:44.9]} 22. h4 {[%clk
0:00:58.2]} 22... Nd3+ {[%clk 0:01:34.1]} 23. Kf1 {[%clk 0:00:57.9]} 23... Rxc4
{[%clk 0:01:29.3]} 24. h5 {[%clk 0:00:47.9]} 24... Qc5 {[%clk 0:01:18.3]} 25. g6
{[%clk 0:00:23.9]} 25... Qxe3 {[%clk 0:01:14.2]} 26. gxh7+ {[%clk 0:00:23.2]}
26... Kxh7 {[%clk 0:01:12.8]} 27. fxe3 {[%clk 0:00:24.1]} 27... Rc2 {[%clk
0:00:58.8]} 28. Bg4 {[%clk 0:00:22.9]} 28... Rd5 {[%clk 0:00:50.9]} 29. Rg2
{[%clk 0:00:19]} 29... Rxg2 {[%clk 0:00:44.6]} 30. Kxg2 {[%clk 0:00:19.9]} 30...
Rg5 {[%clk 0:00:42.5]} 0-1

[Event "Early-Titled-Tuesday-Blitz-September-05-2023"]
[Site "Chess.com"]
[Date "2023.09.05"]
[Round "8"]
[White "Dewarfd"]
[Black "Mariia89"]
[Result "0-1"]
[WhiteElo "2119"]
[BlackElo "1979"]
[TimeControl "180+1"]
[EndTime "9:25:44 PDT"]
[Termination "Mariia89 won by checkmate"]

1. d4 {[%clk 0:03:00]} 1... Nf6 {[%clk 0:02:52.4]} 2. e3 {[%clk 0:02:59.5]} 2...
c5 {[%clk 0:02:52.4]} 3. dxc5 {[%clk 0:02:58.5]} 3... e6 {[%clk 0:02:52.4]} 4.
a3 {[%clk 0:02:57]} 4... Bxc5 {[%clk 0:02:52.8]} 5. b4 {[%clk 0:02:57]} 5... Be7
{[%clk 0:02:53.4]} 6. c4 {[%clk 0:02:55]} 6... d5 {[%clk 0:02:53.6]} 7. cxd5
{[%clk 0:02:54.7]} 7... exd5 {[%clk 0:02:54.5]} 8. Bb2 {[%clk 0:02:55.2]} 8...
O-O {[%clk 0:02:54.5]} 9. Nf3 {[%clk 0:02:55.4]} 9... Be6 {[%clk 0:02:54.8]} 10.
Be2 {[%clk 0:02:52.3]} 10... Nc6 {[%clk 0:02:54.6]} 11. O-O {[%clk 0:02:50.3]}
11... a6 {[%clk 0:02:54.2]} 12. Ng5 {[%clk 0:02:47.7]} 12... Bf5 {[%clk
0:02:50.9]} 13. Nc3 {[%clk 0:02:43.8]} 13... h6 {[%clk 0:02:49.4]} 14. Nf3
{[%clk 0:02:44]} 14... Re8 {[%clk 0:02:43.6]} 15. Rc1 {[%clk 0:02:42.3]} 15...
Bd6 {[%clk 0:02:36.6]} 16. b5 {[%clk 0:02:41.4]} 16... axb5 {[%clk 0:02:36.6]}
17. Nxb5 {[%clk 0:02:42.1]} 17... Bb8 {[%clk 0:02:33.7]} 18. Bxf6 {[%clk
0:02:29.2]} 18... Qxf6 {[%clk 0:02:30.1]} 19. Qxd5 {[%clk 0:02:28.9]} 19... Be4
{[%clk 0:02:25.1]} 20. Qc5 {[%clk 0:02:21.2]} 20... Qg6 {[%clk 0:02:22.4]} 21.
Rfd1 {[%clk 0:02:11.3]} 21... Ba7 {[%clk 0:01:32.8]} 22. Nxa7 {[%clk 0:02:08.3]}
22... Rxa7 {[%clk 0:01:29.2]} 23. Qb6 {[%clk 0:02:05.5]} 23... Rxa3 {[%clk
0:01:22.7]} 24. Rc5 {[%clk 0:01:22.4]} 24... Ra2 {[%clk 0:01:11.3]} 25. Qb5
{[%clk 0:01:13.4]} 25... Rea8 {[%clk 0:00:56.7]} 26. g3 {[%clk 0:01:11.6]} 26...
Qg4 {[%clk 0:00:52.3]} 27. Nd4 {[%clk 0:00:57.4]} 27... Qh3 {[%clk 0:00:48.9]}
28. Bf1 {[%clk 0:00:56.8]} 28... Qd7 {[%clk 0:00:35.7]} 29. Rcc1 {[%clk
0:00:48.1]} 29... Qe7 {[%clk 0:00:32]} 30. Nxc6 {[%clk 0:00:46]} 30... Bxc6
{[%clk 0:00:32]} 31. Qc4 {[%clk 0:00:38.8]} 31... Qf6 {[%clk 0:00:32.2]} 32. Qd4
{[%clk 0:00:38]} 32... Qxf2# {[%clk 0:00:31.4]} 0-1

[Event "Early-Titled-Tuesday-Blitz-September-05-2023"]
[Site "Chess.com"]
[Date "2023.09.05"]
[Round "8"]
[White "nrvisakh"]
[Black "amintabatabaei"]
[Result "1-0"]
[WhiteElo "2882"]
[BlackElo "3012"]
[TimeControl "180+1"]
[EndTime "9:25:46 PDT"]
[Termination "nrvisakh won by resignation"]

1. Nf3 {[%clk 0:03:00.9]} 1... d5 {[%clk 0:02:52.7]} 2. b3 {[%clk 0:03:01.1]}
2... Nf6 {[%clk 0:02:52.6]} 3. Bb2 {[%clk 0:03:01.6]} 3... Bf5 {[%clk
0:02:53.1]} 4. g3 {[%clk 0:03:02]} 4... e6 {[%clk 0:02:53.3]} 5. Bg2 {[%clk
0:03:02.6]} 5... h6 {[%clk 0:02:53.9]} 6. O-O {[%clk 0:03:02.5]} 6... Be7 {[%clk
0:02:54.6]} 7. d3 {[%clk 0:03:02.4]} 7... O-O {[%clk 0:02:55.2]} 8. Nbd2 {[%clk
0:03:02.6]} 8... a5 {[%clk 0:02:55.9]} 9. a3 {[%clk 0:03:02.7]} 9... c6 {[%clk
0:02:55.6]} 10. c4 {[%clk 0:03:03]} 10... Nbd7 {[%clk 0:02:55.1]} 11. Ra2 {[%clk
0:03:03.5]} 11... Bd6 {[%clk 0:02:54.6]} 12. Qa1 {[%clk 0:03:03.7]} 12... Bh7
{[%clk 0:02:52.7]} 13. Ne5 {[%clk 0:03:00.9]} 13... Nxe5 {[%clk 0:02:50.5]} 14.
Bxe5 {[%clk 0:03:01.8]} 14... Re8 {[%clk 0:02:49.3]} 15. Nf3 {[%clk 0:02:55.2]}
15... Bxe5 {[%clk 0:02:44.3]} 16. Nxe5 {[%clk 0:02:53.4]} 16... Nd7 {[%clk
0:02:44]} 17. Nxd7 {[%clk 0:02:44.7]} 17... Qxd7 {[%clk 0:02:44.9]} 18. Rc1
{[%clk 0:02:45.3]} 18... d4 {[%clk 0:02:42.5]} 19. b4 {[%clk 0:02:45]} 19... e5
{[%clk 0:02:41.9]} 20. b5 {[%clk 0:02:41.4]} 20... c5 {[%clk 0:02:19.5]} 21. Qb1
{[%clk 0:02:40.8]} 21... Rad8 {[%clk 0:02:15.1]} 22. b6 {[%clk 0:02:39.8]} 22...
e4 {[%clk 0:02:10.1]} 23. Bxe4 {[%clk 0:02:33.7]} 23... Bxe4 {[%clk 0:02:08]}
24. dxe4 {[%clk 0:02:34.6]} 24... Re6 {[%clk 0:02:01.4]} 25. Rb2 {[%clk
0:02:34.4]} 25... Rde8 {[%clk 0:02:00.4]} 26. f3 {[%clk 0:02:10.2]} 26... f5
{[%clk 0:01:59.8]} 27. exf5 {[%clk 0:02:09.7]} 27... Rxe2 {[%clk 0:02:00.2]} 28.
Rxe2 {[%clk 0:02:09.8]} 28... Rxe2 {[%clk 0:02:01.1]} 29. Re1 {[%clk 0:02:10.2]}
29... Qe7 {[%clk 0:01:48]} 30. Rxe2 {[%clk 0:02:09.6]} 30... Qxe2 {[%clk
0:01:48.9]} 31. Qe4 {[%clk 0:02:09.5]} 31... Qxc4 {[%clk 0:01:36.8]} 32. Qe8+
{[%clk 0:00:54.3]} 32... Kh7 {[%clk 0:01:36.6]} 33. Qg6+ {[%clk 0:00:55.2]}
33... Kh8 {[%clk 0:01:37]} 34. f6 {[%clk 0:00:55.3]} 34... Qg8 {[%clk
0:00:58.5]} 35. f7 {[%clk 0:00:52.8]} 35... Qf8 {[%clk 0:00:58.9]} 36. Qe6
{[%clk 0:00:52.7]} 36... g5 {[%clk 0:00:59.3]} 37. Qe5+ {[%clk 0:00:51.9]} 37...
Kh7 {[%clk 0:00:58.5]} 38. Qe4+ {[%clk 0:00:50.9]} 38... Kg7 {[%clk 0:00:57.1]}
39. Qxb7 {[%clk 0:00:50.9]} 39... d3 {[%clk 0:00:48.4]} 40. Qd7 {[%clk
0:00:50.7]} 40... Qxf7 {[%clk 0:00:41.8]} 41. Qxf7+ {[%clk 0:00:49.3]} 41...
Kxf7 {[%clk 0:00:38.8]} 42. Kf2 {[%clk 0:00:50.2]} 1-0